Workbook

Sheet General Lic Fee Calculator
A1: BRP WW24 Coastal Structure(s) General License Fee Calculator - Tidal Waters | C1: Transmittal Number:
A2: This Fee Calculator is provided for your convenience. You can choose to submit your own calculation worksheet or contact the Waterways Regulation Staff at (617) 292-5929 or dep.waterways@massmail.state.ma.us. | C2: Applicant Name:
C3: Landowner Name (if not applicant):
A4: Mandatory Baseline General License Processing Fee: $75.00
A5: Directions: Sections that you need to fill out for this Fee Calculator are highlighted in Yellow.
A6: Step 1) Remainder of Term Ending on 4/13/2045: Use drop-down list to select the year that you submitted the GL Certification Application. Step 2) Tidal Range: Select your Municipality (Note: The municipality determines the tide range value used for the displacement volume calculation.) Displacement Calculations (Steps 3 & 4) Step 3) Pile/Post Sizes: Select from dropdown menu the closest size of the Piles/Posts. (If you have varying pile sizes/shapes, add a row for each; if pile size is not available in drop-down menu, pick the closest size.)* Step 4) Number Piles: You must enter the number of piles proposed. Step 5) Structures: Select from the Dropdown Menu & Add Rows if needed.* Step 6) The Length of the proposed structure(s) in units of feet, that is seaward of Mean Low Water. Step 7) The Width of the proposed structure(s) in units of feet, that is seaward of Mean Low Water. *Note: If you add a row in step 3 or step 5 by mistake leave the fields for that row blank so that unnecessary fees are not added into the calculation.
A7: Remainder of Term Ending on 4/13/2045 (Step 1)
A8: Select Year You Are Applying (You Select the Year) | B8: Remaining Years
A9: Calendar Year - Click for Dropdown Menu --> | B9: =VLOOKUP(A9,'Dropdown Lists'!D2:E31,2,FALSE) -> 
A11: Tide Range Calculation (Step 2)
A12: Municipality (You Select the Town) | B12: Tide Range (Feet)
A13: Town - Click for Dropdown Menu ----> | B13: =ROUND(VLOOKUP(A13,'Dropdown Lists'!A34:B119,2,FALSE),1) -> 
A15: Displacement Calculation (Steps 3 & 4)
A16: (Step 3) Piles/Posts (You Select the Type) | B16: Displacement Volume (yd3) per Pile/Post | C16: (Step 4) Number of Piles (You Enter #) | D16: Total Displacement Volume (yd3)
A17: Piles/Posts- Click for Dropdown Menu ----> | B17: =B13*VLOOKUP(A17,'Dropdown Lists'!A2:B12,2,FALSE) ->  | D17: =C17 * B17 -> 
C20: Total Displacement Volume (yd3) Rounded to nearest whole yd3 | D20: =ROUND(SUM(D17:D18),0) -> 
C21: Displacement Fee Rate | D21: $2.00/yd3
C22: Total Displacement Fees | D22: =IF($D$20*2 >= 2,$D$20*2, 0) -> 
A24: Commonwealth Tideland Occupied (Steps 5, 6, & 7)
A25: (Step 5) Structures (You Select the Type) | B25: (Step 6) Length in feet seaward of low water (You Enter #) | C25: (Step 7) Width in feet seaward of low water (You Enter #) | D25: Occupation Area (ft2)
A26: Structures - Click for Dropdown Menu ----> | D26: =B26*C26 -> 0
C29: Structures Occupation Area (ft2) | D29: =SUM(D26:D26) -> 0
C30: Piles/Posts Occupation Area (ft2) | D30: 0
C32: Total Occupation Area (ft2) | D32: =ROUND(SUM(structuresOccupationArea,pilesOccupationArea),1) -> 0
C33: Total Occupation Area (yd2) | D33: =D32/9 -> 0
C34: Occupation Fee Rate | D34: $1.00/yd2/year
C35: Total Occupation Fee | D35: =($D$32/9)*1*B9 -> 
A38: Subtotal of Displacement and Occupation Fee | D38: =SUM($D$22,$D$35) -> 
B39: Mandatory Baseline General License Processing Fee | D39: 75
A41: Type/Write in Your Check/Money Order Number | C41: Total Fee Paid | D41: =SUM(FeeSum, 75) -> 
A43: Print this page and submit a copy of this calculator that includes the transmittal number, applicant/landowner name, a copy of your completed General License Certification and your check or money order payable to Commonwealth of Massachusetts and mail to: Massachusetts Department of Environmental Protection P.O. Box 4062 Boston, MA 02211
A44: Make an additional copy of this completed calculator, a copy of your check payment and the original GL Certfication Application Form and send to: MassDEP's Waterways Regulation Program One Winter Street, 5th Floor Boston, MA 02108
A45: Version 2.5, June 29, 2017

Sheet Dropdown Lists (hidden)
A1: Piles/Posts- Click for Dropdown Menu ----> | B1: Unit Volume (cy/ft) | C1: Area (ft2) | D1: Calendar Year - Click for Dropdown Menu --> | E1: Term (years)
A2: Piles/Posts- Click for Dropdown Menu ----> | B2: 0 | C2: 0 | D2: 2015 | E2: 30
A3: 2-inch Diameter Pipe Circular | B3: 0.00081 | C3: 0.022 | D3: 2016 | E3: 29
A4: 4-inch Diameter Pipe Circular | B4: 0.0032 | C4: 0.087 | D4: 2017 | E4: 28
A5: 6-inch Diameter Circular | B5: 0.0073 | C5: 0.2 | D5: 2018 | E5: 27
A6: 8-inch Diameter Circular | B6: 0.013 | C6: 0.35 | D6: 2019 | E6: 26
A7: 10-inch Diameter Circular | B7: 0.02 | C7: 0.55 | D7: 2020 | E7: 25
A8: 12-inch Diameter Circular | B8: 0.029 | C8: 0.79 | D8: 2021 | E8: 24
A9: 4" x 4" Square | B9: 0.00411 | C9: 0.11 | D9: 2022 | E9: 23
A10: 4" x 6" square | B10: 0.00616 | C10: 0.17 | D10: 2023 | E10: 22
A11: 6" x 6" square | B11: 0.00924 | C11: 0.25 | D11: 2024 | E11: 21
A12: 8" x 8" square | B12: 0.01643 | C12: 0.44 | D12: 2025 | E12: 20
D13: 2026 | E13: 19
A14: Geographic Areas (Select Area) | B14: Tide Range 1983-2001 (feet) | D14: 2027 | E14: 18
A15: Merrimack River, Including Salisbury and Newburyport | B15: =AVERAGE('Tide Ranges'!C2:C7) -> 7.545 | D15: 2028 | E15: 17
A16: Essex to Gloucester | B16: =AVERAGE('Tide Ranges'!C8:C9) -> 8.94 | D16: 2029 | E16: 16
A17: Manchester to Revere | B17: =AVERAGE('Tide Ranges'!$C$11:$C$12) -> 9.045 | D17: 2030 | E17: 15
A18: Chelsea/Winthrop to Cohasset | B18: =AVERAGE('Tide Ranges'!$C$13:$C$18) -> 9.44 | D18: 2031 | E18: 14
A19: Scituate to Plymouth | B19: =AVERAGE('Tide Ranges'!$C$19:$C$22) -> 9.4175 | D19: 2032 | E19: 13
A20: Bourne to Provincetown (Cape Cod Bay) | B20: =AVERAGE('Tide Ranges'!$C$23:$C$29) -> 8.014928571 | D20: 2033 | E20: 12
A21: Provincetown to Orleans (Outer Cape) | B21: =AVERAGE('Tide Ranges'!$C$29) -> 9.29 | D21: 2034 | E21: 11
A22: Chatham (including Orleans in Pleasant Bay) | B22: =AVERAGE('Tide Ranges'!C30:C31) -> 4.86 | D22: 2035 | E22: 10
A23: Harwich to Mashpee | B23: =AVERAGE('Tide Ranges'!C33:C34) -> 3.455 | D23: 2036 | E23: 9
A24: Falmouth to RI Border (Buzzards and Mount Hope Bays) | B24: =AVERAGE('Tide Ranges'!$C$38:$C$48) -> 3.497527273 | D24: 2037 | E24: 8
A25: Islands | B25: =AVERAGE('Tide Ranges'!$C$35:$C$37) -> 2.253333333 | D25: 2038 | E25: 7
D26: 2039 | E26: 6
A27: Structures - Click for Dropdown Menu ----> | D27: 2040 | E27: 5
A28: Piers | D28: 2041 | E28: 4
A29: Ramp/Gangway | D29: 2042 | E29: 3
A30: Float | D30: 2043 | E30: 2
D31: 2044 | E31: 1
A33: Town - Click for Dropdown Menu ----> | B33: Tide Range 1983-2001 (feet)
A34: Acushnet | B34: =AVERAGE('Tide Ranges'!$C$38:$C$48) -> 3.497527273
A35: Amesbury | B35: =('Tide Ranges'!C2) -> 8.09
A36: Aquinnah | B36: =AVERAGE('Tide Ranges'!$C$35:$C$37) -> 2.253333333
A37: Barnstable - Cape Cod Bay side | B37: =AVERAGE('Tide Ranges'!$C$24:$C$29) -> 8.034083333
A38: Barnstable (Nantucket Sound) | B38: =AVERAGE('Tide Ranges'!$C$33:$C$34) -> 3.455
A39: Berkley | B39: =AVERAGE('Tide Ranges'!$C$38:$C$48) -> 3.497527273
A40: Beverly | B40: =AVERAGE('Tide Ranges'!$C$11:$C$12) -> 9.045
A41: Boston | B41: =('Tide Ranges'!C14) -> 9.49
A42: Bourne - Buzzards Bay side | B42: =AVERAGE('Tide Ranges'!$C$38:$C$48) -> 3.497527273
A43: Bourne (Cape Cod Bay) | B43: =AVERAGE('Tide Ranges'!$C$23:$C$29) -> 8.014928571
A44: Braintree | B44: =AVERAGE('Tide Ranges'!$C$13:$C$18) -> 9.44
A45: Brewster (Cape Cod Bay) | B45: =AVERAGE('Tide Ranges'!$C$24:$C$29) -> 8.034083333
A46: Chatham | B46: =AVERAGE('Tide Ranges'!C31) -> 5.77
A47: Chatham (Pleasant Bay) | B47: =AVERAGE('Tide Ranges'!$C$32) -> 3.2266
A48: Chelsea | B48: =AVERAGE('Tide Ranges'!$C$13:$C$18) -> 9.44
A49: Chilmark | B49: =AVERAGE('Tide Ranges'!$C$35:$C$37) -> 2.253333333
A50: Cohassset | B50: =AVERAGE('Tide Ranges'!$C$13:$C$18) -> 9.44
A51: Danvers | B51: =AVERAGE('Tide Ranges'!$C$11:$C$12) -> 9.045
A52: Dartmouth | B52: =AVERAGE('Tide Ranges'!$C$38:$C$48) -> 3.497527273
A53: Dennis (Cape Cod Bay) | B53: =AVERAGE('Tide Ranges'!$C$24:$C$29) -> 8.034083333
A54: Dennis (Nantucket Sound) | B54: =AVERAGE('Tide Ranges'!$C$33:$C$34) -> 3.455
A55: Dighton | B55: =AVERAGE('Tide Ranges'!$C$38:$C$48) -> 3.497527273
A56: Duxbury | B56: =AVERAGE('Tide Ranges'!$C$19:$C$22) -> 9.4175
A57: Eastham (Cape Cod Bay) | B57: =AVERAGE('Tide Ranges'!$C$24:$C$29) -> 8.034083333
A58: Eastham (Outer Cape) | B58: =AVERAGE('Tide Ranges'!$C$29) -> 9.29
A59: Edgartown | B59: =AVERAGE('Tide Ranges'!$C$35:$C$37) -> 2.253333333
A60: Essex | B60: =AVERAGE('Tide Ranges'!$C$8:$C$9) -> 8.94
A61: Fairhaven | B61: =AVERAGE('Tide Ranges'!$C$38:$C$48) -> 3.497527273
A62: Fall River | B62: =AVERAGE('Tide Ranges'!$C$38:$C$48) -> 3.497527273
A63: Falmouth (Buzzards Bay) | B63: =AVERAGE('Tide Ranges'!$C$38:$C$48) -> 3.497527273
A64: Falmouth (Nantucket Sound) | B64: =AVERAGE('Tide Ranges'!$C$33:$C$34) -> 3.455
A65: Flamouth (Woods Hole) | B65: ='Tide Ranges'!C38 -> 1.79
A66: Freetown | B66: =AVERAGE('Tide Ranges'!$C$38:$C$48) -> 3.497527273
A67: Gloucester | B67: =AVERAGE('Tide Ranges'!$C$8:$C$9) -> 8.94
A68: Gloucester (Annisquam River and Lobster Cove Only) | B68: =('Tide Ranges'!C10) -> 8.8464
A69: Gosnold | B69: =AVERAGE('Tide Ranges'!$C$35:$C$37) -> 2.253333333
A70: Groveland | B70: =AVERAGE('Tide Ranges'!$C$2:$C$7) -> 7.545
A71: Harwich | B71: =AVERAGE('Tide Ranges'!$C$33:$C$34) -> 3.455
A72: Haverhill | B72: =('Tide Ranges'!C6) -> 5.72
A73: Hingham | B73: =AVERAGE('Tide Ranges'!$C$13:$C$18) -> 9.44
A74: Hull | B74: =AVERAGE('Tide Ranges'!$C$13:$C$18) -> 9.44
A75: Ipswich | B75: =AVERAGE('Tide Ranges'!$C$2:$C$7) -> 7.545
A76: Kingston | B76: =AVERAGE('Tide Ranges'!$C$19:$C$22) -> 9.4175
A77: Lynn | B77: =AVERAGE('Tide Ranges'!$C$11:$C$12) -> 9.045
A78: Manchester-By-The-Sea | B78: =AVERAGE('Tide Ranges'!$C$11:$C$12) -> 9.045
A79: Marblehead | B79: =AVERAGE('Tide Ranges'!$C$11:$C$12) -> 9.045
A80: Marion | B80: =AVERAGE('Tide Ranges'!$C$38:$C$48) -> 3.497527273
A81: Marshfield | B81: =AVERAGE('Tide Ranges'!$C$19:$C$22) -> 9.4175
A82: Mashpee (Nantucket Sound) | B82: =AVERAGE('Tide Ranges'!$C$33:$C$34) -> 3.455
A83: Mattapoisets | B83: =AVERAGE('Tide Ranges'!$C$38:$C$48) -> 3.497527273
A84: Merimac | B84: =('Tide Ranges'!C5) -> 7.05
A85: Milton | B85: =AVERAGE('Tide Ranges'!$C$13:$C$18) -> 9.44
A86: Nahant | B86: =AVERAGE('Tide Ranges'!$C$11:$C$12) -> 9.045
A87: New Bedford | B87: =('Tide Ranges'!C39) -> 3.633
A88: Newburyport | B88: =('Tide Ranges'!C2) -> 8.09
A89: Oak Bluffs | B89: =AVERAGE('Tide Ranges'!$C$35:$C$37) -> 2.253333333
A90: Orleans (Cape Cod Bay) | B90: =AVERAGE('Tide Ranges'!$C$24:$C$29) -> 8.034083333
A91: Orleans (Outer Cape) | B91: =AVERAGE('Tide Ranges'!$C$29) -> 9.29
A92: Orleans (Pleasant Bay) | B92: =AVERAGE('Tide Ranges'!$C$32) -> 3.2266
A93: Plymouth | B93: =AVERAGE('Tide Ranges'!$C$19:$C$22) -> 9.4175
A94: Provincetown (Cape Cod Bay) | B94: =AVERAGE('Tide Ranges'!$C$24:$C$29) -> 8.034083333
A95: Provincetown (Outer Cape) | B95: =AVERAGE('Tide Ranges'!C29) -> 9.29
A96: Quincy | B96: =AVERAGE('Tide Ranges'!$C$13:$C$18) -> 9.44
A97: Revere | B97: =AVERAGE('Tide Ranges'!$C$11:$C$12) -> 9.045
A98: Rockport | B98: =AVERAGE('Tide Ranges'!$C$8:$C$9) -> 8.94
A99: Rowley | B99: =AVERAGE('Tide Ranges'!$C$2:$C$7) -> 7.545
A100: Salem | B100: =AVERAGE('Tide Ranges'!$C$11:$C$12) -> 9.045
A101: Salisbury | B101: =('Tide Ranges'!C4) -> 7.64
A102: Sandwich | B102: =AVERAGE('Tide Ranges'!$C$23:$C$29) -> 8.014928571
A103: Saugus | B103: =AVERAGE('Tide Ranges'!$C$11:$C$12) -> 9.045
A104: Scituate | B104: =AVERAGE('Tide Ranges'!$C$19:$C$22) -> 9.4175
A105: Somerset | B105: =AVERAGE('Tide Ranges'!$C$38:$C$48) -> 3.497527273
A106: Swansea | B106: =AVERAGE('Tide Ranges'!$C$38:$C$48) -> 3.497527273
A107: Tisbury | B107: =AVERAGE('Tide Ranges'!$C$35:$C$37) -> 2.253333333
A108: Truro (Cape Cod Bay) | B108: =AVERAGE('Tide Ranges'!$C$24:$C$29) -> 8.034083333
A109: Truro (Outer Cape) | B109: =AVERAGE('Tide Ranges'!$C$29) -> 9.29
A110: Wareham | B110: =AVERAGE('Tide Ranges'!$C$38:$C$48) -> 3.497527273
A111: Wellfleet (Cape Cod Bay) | B111: =AVERAGE('Tide Ranges'!$C$24:$C$29) -> 8.034083333
A112: Wellfleet (Outer Cape) | B112: =AVERAGE('Tide Ranges'!$C$29) -> 9.29
A113: West Newbury | B113: =AVERAGE('Tide Ranges'!$C$2:$C$7) -> 7.545
A114: West Tisbury | B114: =AVERAGE('Tide Ranges'!$C$35:$C$37) -> 2.253333333
A115: Westport | B115: =AVERAGE('Tide Ranges'!$C$38:$C$48) -> 3.497527273
A116: Weymouth | B116: =AVERAGE('Tide Ranges'!$C$13:$C$18) -> 9.44
A117: Winthrop | B117: =AVERAGE('Tide Ranges'!$C$13:$C$18) -> 9.44
A118: Yarmouth (Cape Cod Bay) | B118: =AVERAGE('Tide Ranges'!$C$24:$C$29) -> 8.034083333
A119: Yarmouth (Outer Cape side) | B119: =AVERAGE('Tide Ranges'!$C$29) -> 9.29

Sheet Tide Ranges (hidden)
A1: NOAA Station # | B1: Station Name | C1: Mean (feet, 1983-2001) | D1: Diurnal (feet, 1983-2001) | E1: NOAA Designation | F1: Designation for This Sheet
A2: 8440466 | B2: Newburyport | C2: 8.09 | D2: 8.76 | E2: Merrimack Rver | F2: Merrimack River
A3: 8440452 | B3: Plum Island, Merrimack River entrance | C3: 8 | D3: 8.7 | E3: Merrimack Rver | F3: Merrimack River
A4: 8440273 | B4: Salisbury Point | C4: 7.64 | D4: 8.28 | E4: Merrimack Rver | F4: Merrimack River
A5: 8440369 | B5: Merrimacport | C5: 7.05 | D5: 7.66 | E5: Merrimack Rver | F5: Merrimack River
A6: 8440889 | B6: Riverside (Haverhill) | C6: 5.72 | D6: 6.3 | E6: Merrimack Rver | F6: Merrimack River
A7: 8441241 | B7: Plum Island South | C7: 8.77 | D7: 9.49 | E7: Merrimack Rver | F7: Merrimack River
A8: 8441771 | B8: Essex | C8: 9.18 | D8: 9.92 | E8: Merrimack Rver | F8: Essex to Gloucester
A9: 8441551 | B9: Rockport | C9: 8.7 | D9: 9.46 | E9: Merrimack Rver | F9: Essex to Gloucester
A10: 8441571 | B10: Annisquam, Lobster Cove | C10: =9.12*0.97 -> 8.8464 | D10: =9.9*0.97 -> 9.603 | E10: Merimack River | F10: Gloucester (Annisquam and Lobster Cove Only) | G10: Subordinate Station (to Portland, ME, NOAA Sta #8418150 * 0.97 feet = Annisquam NOAA Station)
A11: 8442645 | B11: Salem, Salem Harbor | C11: 8.93 | D11: 9.7 | E11: Merrimack Rver | F11: Manchester to Revere
A12: 8443187 | B12: Lynn, Lynn Harbor | C12: 9.16 | D12: 9.94 | E12: Merrimack Rver | F12: Manchester to Revere
A13: 8444162 | B13: Boston Light | C13: 9.05 | D13: 9.82 | E13: Boston Harbor | F13: Chelsea/Winthrop to Cohasset
A14: 8443970 | B14: Boston | C14: 9.49 | D14: 10.27 | E14: Boston Harbor | F14: Chelsea/Winthrop to Cohasset
A15: 8443662 | B15: Amelia Earhart Dam, Mystic River | C15: 9.56 | D15: 10.34 | E15: Boston Harbor | F15: Chelsea/Winthrop to Cohasset
A16: 8443725 | B16: Chelsea | C16: 9.56 | D16: 10.35 | E16: Boston Harbor | F16: Chelsea/Winthrop to Cohasset
A17: 8444525 | B17: Nut Island | C17: 9.42 | D17: 10.21 | E17: Hingham Bay | F17: Chelsea/Winthrop to Cohasset
A18: 8444788 | B18: Weymouth Fore River | C18: 9.56 | D18: 10.35 | E18: Hinham Bay | F18: Chelsea/Winthrop to Cohasset
A19: 8445138 | B19: Scituate, Scituate Harbor | C19: 8.94 | D19: 9.74 | E19: Cohasset Harbor to Davis Bank | F19: Scituate to Plymouth
A20: 8446009 | B20: Brant Rock, Green Harbor River | C20: 9.08 | D20: 9.87 | E20: Cohasset Harbor to Davis Bank | F20: Scituate to Plymouth
A21: 8446166 | B21: Duxbury, Duxbury Harbor | C21: 9.89 | D21: 10.68 | E21: Cape Cod Bay | F21: Scituate to Plymouth
A22: 8446493 | B22: Plymouth | C22: 9.76 | D22: 10.53 | E22: Cape Cod Bay | F22: Scituate to Plymouth
A23: 8447173 | B23: Sagamore, Cape Cod Canal (Sta 115) | C23: 7.9 | D23: 8.59 | E23: Cape Cod Bay | F23: Bourne to Provincetown (Cape Cod Bay)
A24: 8447191 | B24: Bourndale, Cape Cod Canal (Sta 200) | C24: 6.18 | D24: 6.82 | E24: Cape Cod Bay | F24: Bourne to Provincetown (Cape Cod Bay)
A25: 8447259 | B25: Bourne Bridge, Cape Cod Canal (Sta 320) | C25: 4.3 | D25: 4.96 | E25: Cape Cod Bay | F25: Bourne to Provincetown (Cape Cod Bay)
A26: 8447180 | B26: Sandwich | C26: 8.74 | D26: 9.45 | E26: Cape Cod Bay | F26: Bourne to Provincetown (Cape Cod Bay)
A27: 8447241 | B27: Sesuit Harbor, East Dennis | C27: 9.73 | D27: 10.46 | E27: Cape Cod Bay | F27: Bourne to Provincetown (Cape Cod Bay) | G27: Provincetown to Orleans
A28: 8446613 | B28: Wellfleet | C28: =C14*1.05 -> 9.9645 | D28: =D14*1.05 -> 10.7835 | E28: Cape Cod Bay | G28: Subordinate Station (to Boston, MA * 1.05 fet)
A29: 8446121 | B29: Provincetown | C29: 9.29 | D29: 10.08 | E29: Cape Cod Bay | F29: Bourne to Provincetown (Cape Cod Bay)
A30: 8447505 | B30: Chatham, Stage Harbor | C30: 3.95 | D30: 4.58 | E30: Cape Cod | F30: Chatham (including Orleans in Pleasant Bay)
A31: 8447435 | B31: Chatham | C31: 5.77 | D31: 6.41 | E31: Cape Cod | F31: Chatham (including Orleans in Pleasant Bay)
A32: 8447291 | B32: Pleasant Bay | C32: =C14*0.34 -> 3.2266 | D32: =D14*0.34 -> 3.4918 | E32: Cape Cod | G32: Subordinate Station (to Boston, MA * 0.34 feet)
A33: 8447495 | B33: SAQUATUCKET HARBOR | C33: 3.72 | D33: 4.35 | E33: Nantucket Sound, North Side | F33: Harwich to Mashpee
A34: 8447605 | B34: HYANNISPORT | C34: 3.19 | D34: 3.8 | E34: Nantucket Sound, North Side | F34: Harwich to Mashpee
A35: 8449130 | B35: Nantucket Island | C35: 3.04 | D35: 3.57 | E35: Nantucket Isalnd | F35: Islands
A36: 8448157 | B36: VINEYARD HAVEN, VINEYARD HVN HBR | C36: 1.59 | D36: 2.13 | E36: Martha's Vineyard | F36: Islands
A37: 8448558 | B37: Edgartown | C37: 2.13 | D37: 2.68 | E37: Martha's Vineyard | F37: Islands
A38: 8447930 | B38: Woods Hole | C38: 1.79 | D38: 2.2 | E38: Vineyard Sound | F38: Falmouth to RI Border (Buzzards and Mount Hope Bays)
A39: 8447584 | B39: New Bedford | C39: =3.46*1.05 -> 3.633 | D39: =3.85*1.05 -> 4.0425 | E39: Buzzards Bay | G39: Subordinate to Newport, RI #8452660 *1.05 feet
A40: 8447385 | B40: Marion, Sippican Harbor | C40: =3.46*1.13 -> 3.9098 | D40: =3.85*1.13 -> 4.3505 | E40: Buzzards Bay | G40: Subordinate to Newport, RI #8452660* 1.13 feet
A41: 8448248 | B41: PENIKESE ISLAND | C41: 3.41 | D41: 3.8 | E41: Buzzards Bay | F41: Falmouth to RI Border (Buzzards and Mount Hope Bays)
A42: 8447685 | B42: Chappaquoit Point | C42: 3.82 | D42: 4.25 | E42: Buzzards Bay | F42: Falmouth to RI Border (Buzzards and Mount Hope Bays)
A43: 8447295 | B43: Gray Gables | C43: 3.62 | D43: 4.1 | E43: Buzzards Bay | F43: Falmouth to RI Border (Buzzards and Mount Hope Bays)
A44: 8447270 | B44: Buzzards Bay | C44: 3.42 | D44: 3.99 | E44: Buzzards Bay | F44: Falmouth to RI Border (Buzzards and Mount Hope Bays)
A45: 8447368 | B45: Great Hill | C45: 3.97 | D45: 4.41 | E45: Buzzards Bay | F45: Falmouth to RI Border (Buzzards and Mount Hope Bays)
A46: 8447416 | B46: Piney Point | C46: 3.91 | D46: 4.36 | E46: Buzzards Bay | F46: Falmouth to RI Border (Buzzards and Mount Hope Bays)
A47: 8447712 | B47: Clarks Point | C47: 3.56 | D47: 3.96 | E47: Buzzards Bay | F47: Falmouth to RI Border (Buzzards and Mount Hope Bays)
A48: 8447842 | B48: Round Hill Point | C48: 3.43 | D48: 3.84 | E48: Buzzards Bay | F48: Falmouth to RI Border (Buzzards and Mount Hope Bays)
C51: =SUM(C38:C48) -> 38.4728
C52: =AVERAGE(C38:C48) -> 3.497527273
